[Event "Titled Tuesday Blitz November 07 Early 2023"]
[White "aghasiyevkamal"]
[Black "Kravtsiv, Martyn"]
[BlackFideId "14113147"]
[WhiteElo "2614"]
[BlackElo "2858"]
[Result "0-1"]
[Round "4"]
[TimeControl "180+1"]
[Date "2023.11.07"]
[WhiteClock "0:00:12"]
[BlackClock "0:00:34"]
[Board "51"]

1. d4 {[%clk 0:03:00]}  d5 {[%clk 0:02:58]} 2. c4 {[%clk 0:03:00]}  e6 {[%clk 0:02:58]} 3. Nf3 {[%clk 0:02:59]}  Nf6 {[%clk 0:02:58]} 4. g3 {[%clk 0:03:00]}  Bb4+ {[%clk 0:02:57]} 5. Bd2 {[%clk 0:02:57]}  Be7 {[%clk 0:02:57]} 6. Qc2 {[%clk 0:02:58]}  O-O {[%clk 0:02:57]} 7. Bg2 {[%clk 0:02:58]}  c6 {[%clk 0:02:57]} 8. O-O {[%clk 0:02:58]}  Nbd7 {[%clk 0:02:57]} 9. Bf4 {[%clk 0:02:57]}  a5 {[%clk 0:02:54]} 10. Nbd2 {[%clk 0:02:55]}  Nh5 {[%clk 0:02:51]} 11. Be3 {[%clk 0:02:25]}  f5 {[%clk 0:02:50]} 12. cxd5 {[%clk 0:02:16]}  exd5 {[%clk 0:02:50]} 13. Bf4 {[%clk 0:02:15]}  Nxf4 {[%clk 0:02:41]} 14. gxf4 {[%clk 0:02:14]}  Nf6 {[%clk 0:02:42]} 15. Ne5 {[%clk 0:02:10]}  Ne4 {[%clk 0:02:41]} 16. Nxe4 {[%clk 0:02:08]}  fxe4 {[%clk 0:02:41]} 17. e3 {[%clk 0:02:08]}  Bf5 {[%clk 0:02:29]} 18. Qb3 {[%clk 0:02:07]}  Qc7 {[%clk 0:02:12]} 19. Rac1 {[%clk 0:02:04]}  Bd6 {[%clk 0:02:12]} 20. Kh1 {[%clk 0:02:03]}  Kh8 {[%clk 0:02:11]} 21. Qd1 {[%clk 0:02:01]}  g5 {[%clk 0:02:09]} 22. Qh5 {[%clk 0:01:51]}  gxf4 {[%clk 0:02:06]} 23. exf4 {[%clk 0:01:51]}  Qe7 {[%clk 0:01:49]} 24. Rc3 {[%clk 0:01:51]}  Qe6 {[%clk 0:01:44]} 25. Rg3 {[%clk 0:01:49]}  c5 {[%clk 0:01:32]} 26. Bh3 {[%clk 0:01:37]}  Bxe5 {[%clk 0:01:18]} 27. dxe5 {[%clk 0:01:29]}  Bxh3 {[%clk 0:01:06]} 28. Rxh3 {[%clk 0:01:28]}  Qf5 {[%clk 0:01:06]} 29. e6 {[%clk 0:01:16]}  Rae8 {[%clk 0:00:59]} 30. Rd1 {[%clk 0:00:48]}  d4 {[%clk 0:00:56]} 31. Qh4 {[%clk 0:00:26]}  e3 {[%clk 0:00:33]} 32. fxe3 {[%clk 0:00:23]}  Qe4+ {[%clk 0:00:33]} 33. Kg1 {[%clk 0:00:22]}  Rg8+ {[%clk 0:00:33]} 34. Rg3 {[%clk 0:00:21]}  Qxe3+ {[%clk 0:00:34]} 35. Kg2 {[%clk 0:00:18]}  Qe2+ {[%clk 0:00:33]} 36. Kh3 {[%clk 0:00:12]}  Qxe6+ {[%clk 0:00:34]} 0-1


[Site "https://www.chess.com"]

[Event "Titled Tuesday Blitz November 07 Early 2023"]
[White "Tregubov, Pavel V."]
[Black "Nenezic, Marko"]
[WhiteFideId "4115341"]
[BlackFideId "912123"]
[WhiteElo "2613"]
[BlackElo "2855"]
[Result "0-1"]
[Round "4"]
[TimeControl "180+1"]
[Date "2023.11.07"]
[WhiteClock "0:00:00"]
[BlackClock "0:00:17"]
[Board "52"]

1. e4 {[%clk 0:03:00]}  c5 {[%clk 0:02:59]} 2. Nf3 {[%clk 0:03:00]}  d6 {[%clk 0:03:00]} 3. Bb5+ {[%clk 0:02:59]}  Nd7 {[%clk 0:03:00]} 4. Ba4 {[%clk 0:02:59]}  Nf6 {[%clk 0:03:00]} 5. O-O {[%clk 0:02:59]}  e6 {[%clk 0:02:57]} 6. Re1 {[%clk 0:02:58]}  Be7 {[%clk 0:02:57]} 7. c3 {[%clk 0:02:58]}  O-O {[%clk 0:02:51]} 8. d4 {[%clk 0:02:58]}  Qc7 {[%clk 0:02:49]} 9. e5 {[%clk 0:02:44]}  Nd5 {[%clk 0:02:48]} 10. Bb3 {[%clk 0:02:16]}  cxd4 {[%clk 0:02:33]} 11. cxd4 {[%clk 0:02:15]}  N7b6 {[%clk 0:02:22]} 12. Bg5 {[%clk 0:02:09]}  Rd8 {[%clk 0:02:19]} 13. Nbd2 {[%clk 0:02:02]}  h6 {[%clk 0:02:14]} 14. Rc1 {[%clk 0:02:01]}  Qd7 {[%clk 0:02:11]} 15. Bxe7 {[%clk 0:01:59]}  Qxe7 {[%clk 0:02:12]} 16. Qe2 {[%clk 0:01:52]}  dxe5 {[%clk 0:02:09]} 17. dxe5 {[%clk 0:01:52]}  Bd7 {[%clk 0:01:50]} 18. Nd4 {[%clk 0:01:37]}  Qg5 {[%clk 0:01:46]} 19. N2f3 {[%clk 0:01:31]}  Qg4 {[%clk 0:01:42]} 20. h3 {[%clk 0:01:27]}  Qh5 {[%clk 0:01:40]} 21. Qe4 {[%clk 0:01:24]}  Qg6 {[%clk 0:01:30]} 22. Qxg6 {[%clk 0:01:23]}  fxg6 {[%clk 0:01:30]} 23. Nd2 {[%clk 0:01:16]}  Kf7 {[%clk 0:01:01]} 24. Ne4 {[%clk 0:01:15]}  Ke7 {[%clk 0:01:02]} 25. Nc5 {[%clk 0:01:04]}  Bc8 {[%clk 0:01:00]} 26. Red1 {[%clk 0:00:48]}  Nf4 {[%clk 0:00:57]} 27. Kf1 {[%clk 0:00:47]}  g5 {[%clk 0:00:47]} 28. a4 {[%clk 0:00:44]}  Nbd5 {[%clk 0:00:45]} 29. g3 {[%clk 0:00:35]}  Ng6 {[%clk 0:00:43]} 30. Re1 {[%clk 0:00:20]}  Ndf4 {[%clk 0:00:37]} 31. gxf4 {[%clk 0:00:19]}  Rxd4 {[%clk 0:00:37]} 32. fxg5 {[%clk 0:00:17]}  b6 {[%clk 0:00:32]} 33. Ne4 {[%clk 0:00:16]}  Ba6+ {[%clk 0:00:32]} 34. Kg1 {[%clk 0:00:15]}  Nxe5 {[%clk 0:00:31]} 35. Rc7+ {[%clk 0:00:15]}  Kd8 {[%clk 0:00:23]} 36. Rxg7 {[%clk 0:00:14]}  Nf3+ {[%clk 0:00:23]} 37. Kh1 {[%clk 0:00:14]}  Nxe1 {[%clk 0:00:23]} 38. Nf6 {[%clk 0:00:10]}  hxg5 {[%clk 0:00:18]} 39. Rg8+ {[%clk 0:00:05]}  Ke7 {[%clk 0:00:18]} 40. Rxa8 {[%clk 0:00:06]}  Bb7+ {[%clk 0:00:18]} 41. Kh2 {[%clk 0:00:00]}  Bxa8 {[%clk 0:00:17]} 0-1


[Site "https://www.chess.com"]

[Event "Titled Tuesday Blitz November 07 Early 2023"]
[White "Sharapov, Evgeny"]
[Black "Sychev, Klementy"]
[WhiteFideId "14103133"]
[BlackFideId "4114060"]
[WhiteElo "2608"]
[BlackElo "2837"]
[Result "0-1"]
[Round "4"]
[TimeControl "180+1"]
[Date "2023.11.07"]
[WhiteClock "0:02:11"]
[BlackClock "0:01:58"]
[Board "53"]

1. e4 {[%clk 0:02:59]}  e5 {[%clk 0:02:59]} 2. Nf3 {[%clk 0:02:59]}  Nc6 {[%clk 0:02:59]} 3. Bb5 {[%clk 0:02:59]}  a6 {[%clk 0:03:00]} 4. Ba4 {[%clk 0:03:00]}  f5 {[%clk 0:03:00]} 5. Bxc6 {[%clk 0:02:58]}  dxc6 {[%clk 0:03:00]} 6. Nc3 {[%clk 0:02:58]}  Nf6 {[%clk 0:02:57]} 7. Qe2 {[%clk 0:02:58]}  Bd6 {[%clk 0:02:56]} 8. d3 {[%clk 0:02:58]}  f4 {[%clk 0:02:54]} 9. d4 {[%clk 0:02:53]}  Bg4 {[%clk 0:02:44]} 10. dxe5 {[%clk 0:02:51]}  Bxe5 {[%clk 0:02:44]} 11. h3 {[%clk 0:02:51]}  Bh5 {[%clk 0:02:40]} 12. O-O {[%clk 0:02:50]}  Qe7 {[%clk 0:02:37]} 13. Qc4 {[%clk 0:02:36]}  Bxf3 {[%clk 0:02:31]} 14. gxf3 {[%clk 0:02:36]}  O-O-O {[%clk 0:02:31]} 15. b4 {[%clk 0:02:35]}  Rd4 {[%clk 0:02:26]} 16. Qe2 {[%clk 0:02:32]}  Rxb4 {[%clk 0:02:16]} 17. Bd2 {[%clk 0:02:31]}  Qc5 {[%clk 0:02:11]} 18. Qe1 {[%clk 0:02:19]}  Rc4 {[%clk 0:02:01]} 19. Ne2 {[%clk 0:02:19]}  Bxa1 {[%clk 0:01:57]} 20. Qxa1 {[%clk 0:02:11]}  Rxc2 {[%clk 0:01:58]} 0-1


[Site "https://www.chess.com"]

[Event "Titled Tuesday Blitz November 07 Early 2023"]
[White "Rustemov, Alexander"]
[Black "Bodnaruk, Anastasia"]
[WhiteFideId "4119002"]
[BlackFideId "4181751"]
[WhiteElo "2837"]
[BlackElo "2608"]
[Result "1-0"]
[Round "4"]
[TimeControl "180+1"]
[Date "2023.11.07"]
[WhiteClock "0:00:27"]
[BlackClock "0:00:00"]
[Board "54"]

1. d4 {[%clk 0:02:59]}  Nf6 {[%clk 0:02:59]} 2. c4 {[%clk 0:02:58]}  g6 {[%clk 0:03:00]} 3. Nf3 {[%clk 0:02:58]}  Bg7 {[%clk 0:03:00]} 4. g3 {[%clk 0:02:59]}  O-O {[%clk 0:03:01]} 5. Bg2 {[%clk 0:02:59]}  d6 {[%clk 0:03:01]} 6. O-O {[%clk 0:03:00]}  Nc6 {[%clk 0:03:01]} 7. Nc3 {[%clk 0:03:00]}  e5 {[%clk 0:03:01]} 8. h3 {[%clk 0:02:59]}  h6 {[%clk 0:02:49]} 9. Be3 {[%clk 0:02:58]}  Re8 {[%clk 0:02:31]} 10. dxe5 {[%clk 0:02:57]}  Nxe5 {[%clk 0:02:16]} 11. Nxe5 {[%clk 0:02:54]}  Rxe5 {[%clk 0:02:16]} 12. Qd2 {[%clk 0:02:52]}  Kh7 {[%clk 0:02:11]} 13. Bd4 {[%clk 0:02:42]}  Rh5 {[%clk 0:01:59]} 14. g4 {[%clk 0:02:28]}  Rh4 {[%clk 0:01:52]} 15. f3 {[%clk 0:02:22]}  Nd7 {[%clk 0:01:37]} 16. Bf2 {[%clk 0:02:15]}  Ne5 {[%clk 0:01:36]} 17. b3 {[%clk 0:02:14]}  f5 {[%clk 0:01:36]} 18. f4 {[%clk 0:02:04]}  Nc6 {[%clk 0:01:19]} 19. Bxh4 {[%clk 0:01:56]}  Qxh4 {[%clk 0:01:18]} 20. e3 {[%clk 0:01:26]}  fxg4 {[%clk 0:01:15]} 21. hxg4 {[%clk 0:01:27]}  Bxg4 {[%clk 0:01:14]} 22. Rac1 {[%clk 0:01:26]}  Re8 {[%clk 0:01:09]} 23. Nd5 {[%clk 0:01:25]}  h5 {[%clk 0:00:32]} 24. Qf2 {[%clk 0:01:17]}  Qd8 {[%clk 0:00:31]} 25. Rce1 {[%clk 0:01:14]}  Ne7 {[%clk 0:00:31]} 26. Kh2 {[%clk 0:01:10]}  c6 {[%clk 0:00:26]} 27. Nxe7 {[%clk 0:01:09]}  Rxe7 {[%clk 0:00:27]} 28. Bh3 {[%clk 0:01:04]}  Bxh3 {[%clk 0:00:20]} 29. Kxh3 {[%clk 0:01:04]}  Re4 {[%clk 0:00:20]} 30. Qf3 {[%clk 0:01:01]}  Qe7 {[%clk 0:00:20]} 31. Re2 {[%clk 0:00:56]}  d5 {[%clk 0:00:19]} 32. cxd5 {[%clk 0:00:55]}  cxd5 {[%clk 0:00:19]} 33. Rff2 {[%clk 0:00:49]}  Bc3 {[%clk 0:00:07]} 34. Kg2 {[%clk 0:00:49]}  Bb4 {[%clk 0:00:03]} 35. f5 {[%clk 0:00:49]}  Qg5+ {[%clk 0:00:03]} 36. Kf1 {[%clk 0:00:48]}  gxf5 {[%clk 0:00:02]} 37. Qxf5+ {[%clk 0:00:48]}  Qxf5 {[%clk 0:00:03]} 38. Rxf5 {[%clk 0:00:48]}  Bc5 {[%clk 0:00:03]} 39. Rxh5+ {[%clk 0:00:47]}  Kg6 {[%clk 0:00:04]} 40. Rxd5 {[%clk 0:00:48]}  b6 {[%clk 0:00:02]} 41. Kf2 {[%clk 0:00:40]}  Rh4 {[%clk 0:00:02]} 42. Kg3 {[%clk 0:00:39]}  Rh1 {[%clk 0:00:02]} 43. Kf4 {[%clk 0:00:36]}  Rf1+ {[%clk 0:00:02]} 44. Ke4 {[%clk 0:00:36]}  Ra1 {[%clk 0:00:02]} 45. Rf5 {[%clk 0:00:31]}  a5 {[%clk 0:00:02]} 46. Rg2+ {[%clk 0:00:30]}  Kh6 {[%clk 0:00:03]} 47. Rf3 {[%clk 0:00:27]}  Rh1 {[%clk 0:00:03]} 48. Rgg3 {[%clk 0:00:27]}  Rh4+ {[%clk 0:00:03]} 49. Kd3 {[%clk 0:00:26]}  a4 {[%clk 0:00:02]} 50. Rh3 {[%clk 0:00:26]}  Rxh3 {[%clk 0:00:01]} 51. Rxh3+ {[%clk 0:00:27]}  Kg5 {[%clk 0:00:02]} 52. Rf3 {[%clk 0:00:27]}  axb3 {[%clk 0:00:00]} 53. axb3 {[%clk 0:00:27]} 1-0


[Site "https://www.chess.com"]

[Event "Titled Tuesday Blitz November 07 Early 2023"]
[White "Mikhailovsky, Vladimir"]
[Black "Kononenko, Dmitry"]
[WhiteFideId "34105414"]
[BlackFideId "14113538"]
[WhiteElo "2828"]
[BlackElo "2598"]
[Result "1-0"]
[Round "4"]
[TimeControl "180+1"]
[Date "2023.11.07"]
[WhiteClock "0:00:04"]
[BlackClock "0:00:00"]
[Board "57"]

1. d4 {[%clk 0:03:00]}  d5 {[%clk 0:02:59]} 2. c4 {[%clk 0:03:01]}  c6 {[%clk 0:02:59]} 3. Nf3 {[%clk 0:03:01]}  Nf6 {[%clk 0:02:59]} 4. Nbd2 {[%clk 0:03:01]}  e6 {[%clk 0:02:59]} 5. g3 {[%clk 0:02:54]}  Nbd7 {[%clk 0:02:59]} 6. Bg2 {[%clk 0:02:55]}  Bd6 {[%clk 0:02:59]} 7. O-O {[%clk 0:02:55]}  O-O {[%clk 0:02:59]} 8. Qc2 {[%clk 0:02:54]}  e5 {[%clk 0:02:58]} 9. cxd5 {[%clk 0:02:49]}  cxd5 {[%clk 0:02:54]} 10. dxe5 {[%clk 0:02:49]}  Nxe5 {[%clk 0:02:53]} 11. Nxe5 {[%clk 0:02:50]}  Bxe5 {[%clk 0:02:52]} 12. Nf3 {[%clk 0:02:50]}  Bd6 {[%clk 0:02:51]} 13. Rd1 {[%clk 0:02:48]}  Re8 {[%clk 0:02:47]} 14. h3 {[%clk 0:02:31]}  Qb6 {[%clk 0:02:41]} 15. Nd4 {[%clk 0:02:10]}  Bc5 {[%clk 0:02:35]} 16. e3 {[%clk 0:02:00]}  Bd7 {[%clk 0:02:23]} 17. Bd2 {[%clk 0:01:54]}  Ne4 {[%clk 0:02:19]} 18. Be1 {[%clk 0:01:50]}  Rac8 {[%clk 0:02:18]} 19. Qb3 {[%clk 0:01:50]}  Qf6 {[%clk 0:01:17]} 20. Qxd5 {[%clk 0:01:40]}  Bxd4 {[%clk 0:00:52]} 21. Qxd4 {[%clk 0:01:28]}  Bc6 {[%clk 0:00:49]} 22. Qxf6 {[%clk 0:01:25]}  Nxf6 {[%clk 0:00:48]} 23. Rac1 {[%clk 0:01:22]}  Bxg2 {[%clk 0:00:47]} 24. Kxg2 {[%clk 0:01:23]}  a6 {[%clk 0:00:41]} 25. Bc3 {[%clk 0:01:20]}  Ne4 {[%clk 0:00:39]} 26. Bd4 {[%clk 0:01:21]}  f6 {[%clk 0:00:35]} 27. h4 {[%clk 0:01:15]}  Kf7 {[%clk 0:00:31]} 28. Kf3 {[%clk 0:01:16]}  Nd2+ {[%clk 0:00:30]} 29. Ke2 {[%clk 0:01:09]}  Nc4 {[%clk 0:00:30]} 30. Rc2 {[%clk 0:00:57]}  Na5 {[%clk 0:00:25]} 31. Bc3 {[%clk 0:00:49]}  Nc6 {[%clk 0:00:23]} 32. Rcd2 {[%clk 0:00:50]}  Re7 {[%clk 0:00:20]} 33. Rd7 {[%clk 0:00:46]}  Rc7 {[%clk 0:00:19]} 34. Rxc7 {[%clk 0:00:45]}  Rxc7 {[%clk 0:00:19]} 35. Rd5 {[%clk 0:00:38]}  Ke6 {[%clk 0:00:19]} 36. e4 {[%clk 0:00:33]}  Ne7 {[%clk 0:00:15]} 37. Rd2 {[%clk 0:00:28]}  Nc8 {[%clk 0:00:13]} 38. Ke3 {[%clk 0:00:23]}  Nd6 {[%clk 0:00:11]} 39. Kf3 {[%clk 0:00:18]}  Rc4 {[%clk 0:00:07]} 40. Rd4 {[%clk 0:00:13]}  Rc6 {[%clk 0:00:05]} 41. Rd3 {[%clk 0:00:09]}  Nb5 {[%clk 0:00:05]} 42. Ke3 {[%clk 0:00:07]}  Nxc3 {[%clk 0:00:04]} 43. Rxc3 {[%clk 0:00:07]}  Rb6 {[%clk 0:00:04]} 44. b3 {[%clk 0:00:07]}  Kd7 {[%clk 0:00:04]} 45. f4 {[%clk 0:00:05]}  Rb5 {[%clk 0:00:03]} 46. g4 {[%clk 0:00:06]}  h5 {[%clk 0:00:03]} 47. g5 {[%clk 0:00:06]}  fxg5 {[%clk 0:00:03]} 48. fxg5 {[%clk 0:00:06]}  g6 {[%clk 0:00:03]} 49. Kd4 {[%clk 0:00:05]}  Kd6 {[%clk 0:00:02]} 50. Rc8 {[%clk 0:00:04]}  Rb4+ {[%clk 0:00:02]} 51. Ke3 {[%clk 0:00:04]}  Rb6 {[%clk 0:00:02]} 52. Rf8 {[%clk 0:00:04]}  Ke7 {[%clk 0:00:01]} 53. Rg8 {[%clk 0:00:03]}  Kf7 {[%clk 0:00:00]} 54. Rc8 {[%clk 0:00:04]} 1-0


[Site "https://www.chess.com"]

[Event "Titled Tuesday Blitz November 07 Early 2023"]
[White "Nazari, Arad"]
[Black "Kozusek, Daniel"]
[WhiteFideId "12577324"]
[BlackFideId "349500"]
[WhiteElo "2785"]
[BlackElo "2587"]
[Result "1-0"]
[Round "4"]
[TimeControl "180+1"]
[Date "2023.11.07"]
[WhiteClock "0:01:53"]
[BlackClock "0:00:02"]
[Board "60"]

1. e4 {[%clk 0:02:51]}  c6 {[%clk 0:02:58]} 2. Nf3 {[%clk 0:02:51]}  d5 {[%clk 0:02:58]} 3. Nc3 {[%clk 0:02:51]}  dxe4 {[%clk 0:02:54]} 4. Nxe4 {[%clk 0:02:52]}  Nf6 {[%clk 0:02:54]} 5. Qe2 {[%clk 0:02:52]}  Nxe4 {[%clk 0:02:49]} 6. Qxe4 {[%clk 0:02:53]}  Be6 {[%clk 0:02:49]} 7. Bc4 {[%clk 0:02:51]}  Bd5 {[%clk 0:02:38]} 8. Bxd5 {[%clk 0:02:51]}  cxd5 {[%clk 0:02:38]} 9. Qe3 {[%clk 0:02:50]}  Nc6 {[%clk 0:02:37]} 10. d4 {[%clk 0:02:49]}  e6 {[%clk 0:02:37]} 11. O-O {[%clk 0:02:49]}  Bd6 {[%clk 0:02:35]} 12. c3 {[%clk 0:02:49]}  O-O {[%clk 0:02:33]} 13. b4 {[%clk 0:02:50]}  Rc8 {[%clk 0:02:27]} 14. Nd2 {[%clk 0:02:47]}  e5 {[%clk 0:02:21]} 15. a3 {[%clk 0:02:43]}  Re8 {[%clk 0:02:00]} 16. dxe5 {[%clk 0:02:39]}  Bxe5 {[%clk 0:02:00]} 17. Qd3 {[%clk 0:02:38]}  Qc7 {[%clk 0:01:07]} 18. Nf3 {[%clk 0:02:34]}  Rcd8 {[%clk 0:01:03]} 19. Bb2 {[%clk 0:02:29]}  Bf6 {[%clk 0:01:01]} 20. Rad1 {[%clk 0:02:22]}  Ne5 {[%clk 0:01:01]} 21. Nxe5 {[%clk 0:02:22]}  Bxe5 {[%clk 0:01:02]} 22. g3 {[%clk 0:02:17]}  Qc4 {[%clk 0:00:59]} 23. Rfe1 {[%clk 0:02:13]}  Qxd3 {[%clk 0:00:24]} 24. Rxd3 {[%clk 0:02:13]}  Re6 {[%clk 0:00:25]} 25. Red1 {[%clk 0:02:09]}  Red6 {[%clk 0:00:21]} 26. Bc1 {[%clk 0:02:08]}  b5 {[%clk 0:00:19]} 27. Be3 {[%clk 0:02:06]}  a6 {[%clk 0:00:18]} 28. Bc5 {[%clk 0:02:04]}  R6d7 {[%clk 0:00:19]} 29. a4 {[%clk 0:02:02]}  bxa4 {[%clk 0:00:14]} 30. Ra1 {[%clk 0:02:02]}  a5 {[%clk 0:00:06]} 31. bxa5 {[%clk 0:02:02]}  Rc8 {[%clk 0:00:06]} 32. Bb4 {[%clk 0:01:54]}  d4 {[%clk 0:00:03]} 33. Rxa4 {[%clk 0:01:54]}  dxc3 {[%clk 0:00:01]} 34. Rxd7 {[%clk 0:01:52]}  c2 {[%clk 0:00:02]} 35. Bd2 {[%clk 0:01:52]}  c1=Q+ {[%clk 0:00:02]} 36. Bxc1 {[%clk 0:01:52]}  Rxc1+ {[%clk 0:00:02]} 37. Kg2 {[%clk 0:01:53]} 1-0


[Site "https://www.chess.com"]

[Event "Titled Tuesday Blitz November 07 Early 2023"]
[White "Roebers, Eline"]
[Black "Hayrapetyan, Hovik"]
[WhiteFideId "1058401"]
[BlackFideId "13302639"]
[WhiteElo "2560"]
[BlackElo "2769"]
[Result "0-1"]
[Round "4"]
[TimeControl "180+1"]
[Date "2023.11.07"]
[WhiteClock "0:00:01"]
[BlackClock "0:00:19"]
[Board "65"]

1. e4 {[%clk 0:03:00]}  c5 {[%clk 0:02:59]} 2. Nf3 {[%clk 0:03:00]}  d6 {[%clk 0:03:00]} 3. d4 {[%clk 0:03:01]}  cxd4 {[%clk 0:03:01]} 4. Nxd4 {[%clk 0:03:02]}  Nf6 {[%clk 0:03:02]} 5. Nc3 {[%clk 0:03:02]}  a6 {[%clk 0:03:02]} 6. Rg1 {[%clk 0:03:02]}  e5 {[%clk 0:03:01]} 7. Nb3 {[%clk 0:03:02]}  h5 {[%clk 0:03:00]} 8. Bg5 {[%clk 0:03:00]}  Be6 {[%clk 0:02:58]} 9. Bxf6 {[%clk 0:02:52]}  Qxf6 {[%clk 0:02:58]} 10. Nd5 {[%clk 0:02:52]}  Qd8 {[%clk 0:02:58]} 11. Qd2 {[%clk 0:02:49]}  Nd7 {[%clk 0:02:57]} 12. O-O-O {[%clk 0:02:44]}  g6 {[%clk 0:02:58]} 13. Kb1 {[%clk 0:02:43]}  Bh6 {[%clk 0:02:57]} 14. Qb4 {[%clk 0:02:41]}  Qb8 {[%clk 0:02:38]} 15. a4 {[%clk 0:02:26]}  b6 {[%clk 0:02:30]} 16. h3 {[%clk 0:02:12]}  a5 {[%clk 0:02:27]} 17. Qc3 {[%clk 0:02:07]}  O-O {[%clk 0:02:25]} 18. Bb5 {[%clk 0:02:03]}  Bxd5 {[%clk 0:02:22]} 19. Rxd5 {[%clk 0:01:55]}  Nf6 {[%clk 0:02:22]} 20. Rdd1 {[%clk 0:01:54]}  Nxe4 {[%clk 0:02:20]} 21. Qf3 {[%clk 0:01:52]}  Ng5 {[%clk 0:01:55]} 22. Qd5 {[%clk 0:01:44]}  Rd8 {[%clk 0:01:51]} 23. h4 {[%clk 0:01:37]}  Ne6 {[%clk 0:01:49]} 24. g4 {[%clk 0:01:37]}  Nf4 {[%clk 0:01:46]} 25. Qf3 {[%clk 0:01:33]}  hxg4 {[%clk 0:01:38]} 26. Rxg4 {[%clk 0:01:34]}  Qc7 {[%clk 0:01:27]} 27. h5 {[%clk 0:01:26]}  Rac8 {[%clk 0:01:17]} 28. c3 {[%clk 0:01:07]}  g5 {[%clk 0:01:01]} 29. Qe4 {[%clk 0:01:00]}  Qe7 {[%clk 0:00:56]} 30. Rxf4 {[%clk 0:00:20]}  gxf4 {[%clk 0:00:55]} 31. Bd3 {[%clk 0:00:20]}  Qf6 {[%clk 0:00:50]} 32. Rg1+ {[%clk 0:00:19]}  Kf8 {[%clk 0:00:50]} 33. Qb7 {[%clk 0:00:17]}  Rb8 {[%clk 0:00:41]} 34. Qd5 {[%clk 0:00:15]}  Ke7 {[%clk 0:00:35]} 35. Nd2 {[%clk 0:00:13]}  Qe6 {[%clk 0:00:32]} 36. Qb5 {[%clk 0:00:10]}  d5 {[%clk 0:00:30]} 37. Bc2 {[%clk 0:00:09]}  e4 {[%clk 0:00:30]} 38. Nb3 {[%clk 0:00:08]}  Rg8 {[%clk 0:00:30]} 39. Rd1 {[%clk 0:00:07]}  Bg7 {[%clk 0:00:24]} 40. Rxd5 {[%clk 0:00:06]}  Rbd8 {[%clk 0:00:20]} 41. c4 {[%clk 0:00:06]}  Rxd5 {[%clk 0:00:19]} 42. cxd5 {[%clk 0:00:07]}  Qe5 {[%clk 0:00:20]} 43. Nd2 {[%clk 0:00:07]}  e3 {[%clk 0:00:19]} 44. Nc4 {[%clk 0:00:07]}  e2 {[%clk 0:00:19]} 45. Nxe5 {[%clk 0:00:04]}  e1=Q+ {[%clk 0:00:19]} 46. Ka2 {[%clk 0:00:01]}  Qxe5 {[%clk 0:00:19]} 0-1


[Site "https://www.chess.com"]

[Event "Titled Tuesday Blitz November 07 Early 2023"]
[White "Samunenkov, Ihor"]
[Black "OPQRC"]
[WhiteFideId "14187086"]
[WhiteElo "2769"]
[BlackElo "2552"]
[Result "1/2-1/2"]
[Round "4"]
[TimeControl "180+1"]
[Date "2023.11.07"]
[WhiteClock "0:00:03"]
[BlackClock "0:00:05"]
[Board "66"]

1. e4 {[%clk 0:03:00]}  c5 {[%clk 0:02:52]} 2. Nf3 {[%clk 0:03:00]}  e6 {[%clk 0:02:52]} 3. d4 {[%clk 0:02:58]}  cxd4 {[%clk 0:02:53]} 4. Nxd4 {[%clk 0:02:59]}  Nf6 {[%clk 0:02:54]} 5. Nc3 {[%clk 0:02:59]}  Nc6 {[%clk 0:02:54]} 6. Nxc6 {[%clk 0:03:00]}  bxc6 {[%clk 0:02:55]} 7. e5 {[%clk 0:03:00]}  Nd5 {[%clk 0:02:56]} 8. Ne4 {[%clk 0:03:01]}  Bb7 {[%clk 0:02:56]} 9. Be2 {[%clk 0:03:00]}  f5 {[%clk 0:02:54]} 10. exf6 {[%clk 0:02:52]}  Nxf6 {[%clk 0:02:53]} 11. Nd6+ {[%clk 0:02:52]}  Bxd6 {[%clk 0:02:53]} 12. Qxd6 {[%clk 0:02:53]}  Qa5+ {[%clk 0:02:33]} 13. Bd2 {[%clk 0:02:40]}  Qd5 {[%clk 0:02:32]} 14. Qxd5 {[%clk 0:02:40]}  cxd5 {[%clk 0:02:30]} 15. O-O-O {[%clk 0:02:32]}  O-O {[%clk 0:02:27]} 16. f3 {[%clk 0:02:29]}  Rac8 {[%clk 0:02:22]} 17. Kb1 {[%clk 0:02:27]}  e5 {[%clk 0:02:18]} 18. Bb4 {[%clk 0:02:16]}  Rfe8 {[%clk 0:02:16]} 19. Rhe1 {[%clk 0:02:04]}  d4 {[%clk 0:02:03]} 20. Bb5 {[%clk 0:01:45]}  a6 {[%clk 0:01:23]} 21. Ba4 {[%clk 0:01:41]}  Bc6 {[%clk 0:01:23]} 22. Bb3+ {[%clk 0:01:41]}  Bd5 {[%clk 0:01:21]} 23. Bd6 {[%clk 0:01:41]}  Bxb3 {[%clk 0:01:17]} 24. axb3 {[%clk 0:01:40]}  e4 {[%clk 0:01:15]} 25. fxe4 {[%clk 0:01:20]}  Nxe4 {[%clk 0:01:14]} 26. Bb4 {[%clk 0:01:20]}  Rb8 {[%clk 0:00:21]} 27. Ba5 {[%clk 0:00:56]}  Rb5 {[%clk 0:00:19]} 28. Rxd4 {[%clk 0:00:33]}  Rxa5 {[%clk 0:00:17]} 29. Rexe4 {[%clk 0:00:31]}  Rxe4 {[%clk 0:00:17]} 30. Rxe4 {[%clk 0:00:32]}  Rg5 {[%clk 0:00:16]} 31. Re2 {[%clk 0:00:32]}  Kf7 {[%clk 0:00:16]} 32. b4 {[%clk 0:00:32]}  h5 {[%clk 0:00:16]} 33. Ka2 {[%clk 0:00:31]}  Rg4 {[%clk 0:00:14]} 34. Kb3 {[%clk 0:00:31]}  g5 {[%clk 0:00:15]} 35. c4 {[%clk 0:00:29]}  Rd4 {[%clk 0:00:10]} 36. Kc3 {[%clk 0:00:23]}  Rf4 {[%clk 0:00:08]} 37. b3 {[%clk 0:00:21]}  g4 {[%clk 0:00:08]} 38. Kb2 {[%clk 0:00:15]}  h4 {[%clk 0:00:07]} 39. Ka3 {[%clk 0:00:13]}  Kf6 {[%clk 0:00:05]} 40. b5 {[%clk 0:00:13]}  axb5 {[%clk 0:00:04]} 41. cxb5 {[%clk 0:00:14]}  Kg5 {[%clk 0:00:03]} 42. b6 {[%clk 0:00:12]}  Rf6 {[%clk 0:00:03]} 43. Re5+ {[%clk 0:00:13]}  Kf4 {[%clk 0:00:02]} 44. Rb5 {[%clk 0:00:13]}  Rf8 {[%clk 0:00:02]} 45. b7 {[%clk 0:00:11]}  Rb8 {[%clk 0:00:02]} 46. Kb4 {[%clk 0:00:10]}  Ke3 {[%clk 0:00:03]} 47. g3 {[%clk 0:00:03]}  h3 {[%clk 0:00:03]} 48. Kc5 {[%clk 0:00:02]}  Kf2 {[%clk 0:00:03]} 49. Kb6 {[%clk 0:00:02]}  Kg2 {[%clk 0:00:03]} 50. Rg5 {[%clk 0:00:03]}  Kxh2 {[%clk 0:00:03]} 51. Rxg4 {[%clk 0:00:04]}  Kg2 {[%clk 0:00:02]} 52. Kc7 {[%clk 0:00:04]}  Rxb7+ {[%clk 0:00:01]} 53. Kxb7 {[%clk 0:00:04]}  h2 {[%clk 0:00:02]} 54. Rh4 {[%clk 0:00:05]}  Kxg3 {[%clk 0:00:03]} 55. Rh8 {[%clk 0:00:01]}  d5 {[%clk 0:00:03]} 56. b4 {[%clk 0:00:01]}  d4 {[%clk 0:00:04]} 57. Ka7 {[%clk 0:00:01]}  d3 {[%clk 0:00:04]} 58. Rg8+ {[%clk 0:00:02]}  Kf2 {[%clk 0:00:04]} 59. Rh8 {[%clk 0:00:02]}  Kg2 {[%clk 0:00:04]} 60. Rg8+ {[%clk 0:00:02]}  Kf2 {[%clk 0:00:04]} 61. Rf8+ {[%clk 0:00:03]}  Kg2 {[%clk 0:00:05]} 62. Rg8+ {[%clk 0:00:03]}  Kf2 {[%clk 0:00:05]} 1/2-1/2


[Site "https://www.chess.com"]